Cogmind - Beta 16 --- EXPLORER MODE // 2026.01.05 @ 10:30:15 Player: K.K.Y. Result: Destroyed by Shrapnel Trap Performance ------------- Evolutions (0) 0 Regions Visited (3) 600 Robots Destroyed (32) 160 Value Destroyed (906) 906 Prototype IDs (0) 0 Alien Tech Used (0) 0 Bonus (14) 14 TOTAL SCORE: 1680 Bonus ------- Follower Combat Kills 14 Cogmind --------- Core Integrity 0/250 Matter 290/300 Energy 248/250 System Corruption 0% Temperature Cool (1) Movement Treading (240) Ox1 Location -10/Subcaves Parts ------- > --- POWER (1) -------- Ion Engine > --- PROPULSION (2) --- Light Treads > --- UTILITY (3) ------ Cooling System Large Storage Unit Structural Scanner > --- WEAPON (2) ------- Particle Gun Battle Cannon > --- INVENTORY (15) --- Light Nuclear Core Light Nuclear Core Light Treads Improved Heat Sink Improved Heat Sink Cooling System Cooling System Cooling System Huge Storage Unit Experimental Sensor Array Improved Terrain Scanner Light Armor Plating Light Armor Plating Light Armor Plating Peak State ------------ > --- POWER ------------ Ion Engine > --- PROPULSION ------- Light Treads Light Treads > --- UTILITY ---------- Improved Heat Sink Cooling System Large Storage Unit > --- WEAPON ----------- Particle Gun Assault Rifle > --- INVENTORY -------- Light Nuclear Core Light Nuclear Core Light Treads Improved Heat Sink Cooling System Cooling System Cooling System Huge Storage Unit Structural Scanner Experimental Sensor Array Improved Terrain Scanner Light Armor Plating Light Armor Plating Light Armor Plating Mining Laser [Rating: 15] Favorites ----------- Power Ion Engine Engine Ion Engine Propulsion Light Treads Treads Light Treads Utility Large Storage Unit Device Cooling System Storage Large Storage Unit Protection Light Armor Plating Weapon Particle Gun Energy Gun Particle Gun Ballistic Gun Assault Rifle Ballistic Cannon Battle Cannon Special Weapon Mining Laser Build | -11 -10 -10 -10 ------- Run | Yrd Mat Min Sub Slots Evolved 1 | . 1 . . Power . | . . . . Propulsion . | . . . . Utility 1 | . 1 . . Weapon . | . . . . Parts Attached 24 | 8 11 1 4 Power 2 | 1 . 1 . Engine 2 | 1 . 1 . Core . | . . . . Reactor . | . . . . Propulsion 5 | 2 3 . . Treads 5 | 2 3 . . Leg . | . . . . Wheel . | . . . . Hover . | . . . . Flight . | . . . . Utility 11 | 3 6 . 2 Device 4 | . 2 . 2 Storage 2 | 1 1 . . Processor . | . . . . Hackware . | . . . . Protection 5 | 2 3 . . Artifact . | . . . . Weapon 6 | 2 2 . 2 Energy Gun 1 | . 1 . . Energy Cannon . | . . . . Ballistic Gun 3 | 2 1 . . Ballistic Cannon 1 | . . . 1 Launcher . | . . . . Special Weapon 1 | . . . 1 Impact Weapon . | . . . . Slashing Weapon . | . . . . Piercing Weapon . | . . . . Special Melee Weapon . | . . . . Unidentified Prototypes . | . . . . Parts Lost 3 | . . . 3 Power . | . . . . Propulsion 1 | . . . 1 Utility 1 | . . . 1 Weapon 1 | . . . 1 Highest Loss Streak 2 | . . . 2 To Critical Strikes . | . . . . Average Backups 12 | 2 10 14 14 Power 1 | . 1 2 2 Propulsion 1 | . 2 1 1 Utility 8 | 1 5 10 11 Weapon . | . 1 1 . Tool/Special . | . . . . Unused Backups 17 | . 4 . 13 Power 2 | . . . 2 Propulsion 1 | . . . 1 Utility 13 | . 3 . 10 Weapon 1 | . 1 . . Tool/Special . | . . . . Average Slot Usage (%) 96 | . 94 100 96 Engine 11 | . 11 12 12 Treads 24 | . 24 25 22 Device 14 | . 9 12 24 Storage 11 | . 11 12 12 Protection 8 | . 11 12 . Energy Gun 11 | . 10 12 12 Ballistic Gun 9 | . 12 12 2 Special Weapon 2 | . . . 8 Peak Build Rating 15 | 7 13 13 15 Average Rating 12 | 5 11 12 13 On Entrance 8 | . 7 12 13 Avg Prop Armor Cover (%) . | . . . . Naked Turns . | . . . . Heaviest Build 35 | 13 35 35 35 Greatest Support 40 | 40 40 40 40 Greatest Overweight (x) 3 | 3 1 . 1 Average Overweight (x) . | . . . . Largest Inventory Capacity 15 | 10 15 15 15 Average Capacity 13 | 5 12 15 15 Most Carried 15 | 6 15 15 15 Average Carried 12 | 2 10 14 14 Final Capacity 15 | 5 15 15 15 Final Carried 15 | 3 15 15 14 Class Distribution -------------------- 100% | Hacker-Mutant Dominant Class ---------------- Hacker-Mutant | -10/Materials Hacker-Mutant | -10/Mines Hacker-Mutant | -10/Subcaves Resources | -11 -10 -10 -10 ----------- Run | Yrd Mat Min Sub Matter Collected 807 | 300 343 91 73 Remotely . | . . . . Salvage Created 1345 | 118 703 177 347 Parts 62 | 5 32 8 17 Haulers Intercepted 2 | . 2 . . Recyclers Shooed 1 | . 1 . . Parts Field Recycled . | . . . . Retrieved Matter . | . . . . Parts Self-Destructed . | . . . . Prevented . | . . . . Parts Restored . | . . . . Kills | -11 -10 -10 -10 ------- Run | Yrd Mat Min Sub Combat Hostiles Destroyed 20 | . 8 4 8 Guns 20 | . 8 4 8 Classes Destroyed 8 | 2 5 . 1 Worker 1 | . 1 . . Builder 1 | . 1 . . Tunneler 2 | 1 1 . . Hauler 2 | . 2 . . Recycler 3 | 1 2 . . Watcher 3 | . 3 . . Grunt 12 | . 8 4 . Subdweller 8 | . . . 8 Best Kill Streak 4 | 1 4 2 2 Combat Bots Only 2 | . 2 2 2 Max Kills in Single Turn 2 | 1 1 1 2 Gunslinging 1 | . . . 1 Exploded . | . . . . Melee . | . . . . Uniques/NPCs Destroyed . | . . . . Combat | -11 -10 -10 -10 -------- Run | Yrd Mat Min Sub Hostile Shots Fired 132 | . 53 23 56 Missed 43 | . 19 5 19 Hits 89 | . 34 18 37 Projectile 89 | . 34 18 37 Critical Strikes 1 | . 1 . . Damage Taken 934 | . 288 85 561 Core 271 | . 42 10 219 Absorbed by Shields . | . . . . Ignored by Resistances 577 | . 182 61 334 Core Remaining (%) 100 | 100 . . . Volleys Fired 135 | 10 66 10 49 Largest 2 | 2 2 2 2 Hottest 165 | 40 85 85 165 Shots Fired 216 | 20 107 20 69 Gun 208 | 20 107 20 61 Cannon . | . . . . Launcher . | . . . . Special 8 | . . . 8 Kinetic 108 | 20 66 10 12 Thermal 108 | . 41 10 57 Explosive . | . . . . Electromagnetic . | . . . . Robot Hit Streak 27 | 11 21 14 27 Robot Miss Streak 3 | 1 3 1 1 Penetration Max . | . . . . Secondary Targets 4 | . 2 . 2 Max Gunslinging Chain 1 | . 1 . 1 Shots Hit Robots 174 | 19 89 16 50 Core Hits 62 | 6 35 5 16 Critical Kills 1 | . . 1 . Critical Parts Destroyed 1 | . 1 . . Critical Strikes 6 | . 3 1 2 Burn 4 | . 2 . 2 Destroy 2 | . 1 1 . Melee Attacks . | . . . . Impact . | . . . . Slashing . | . . . . Piercing . | . . . . Sneak Attacks . | . . . . Combat Hostiles . | . . . . Follow-up Attacks . | . . . . Damage Inflicted 2200 | 141 1172 265 622 Guns 2160 | 141 1172 225 622 Cannons . | . . . . Explosions . | . . . . Melee . | . . . . Ramming 40 | . . 40 . Kinetic 909 | 141 603 87 78 Thermal 1251 | . 569 138 544 Explosive . | . . . . Electromagnetic . | . . . . Impact . | . . . . Slashing . | . . . . Piercing . | . . . . Highest Corruption . | . . . . Average Corruption . | . . . . Corruption Purged . | . . . . Corruption Blocked . | . . . . Overload Shots . | . . . . Overflow Damage . | . . . . Projectiles . | . . . . Explosions . | . . . . Melee . | . . . . Knockbacks . | . . . . Impact . | . . . . Kinetic . | . . . . Secondary . | . . . . Self-Inflicted Damage . | . . . . Shots . | . . . . Rammed 7 | . . 7 . Targets Rammed 7 | . . 7 . Kicked . | . . . . Crushed . | . . . . Highest Temperature 350 | 42 350 . . Average Temperature 81 | 21 98 . . Received Heat Transfer 399 | . 255 12 132 Effects 3 | . 3 . . Shutdowns 1 | . 1 . . Interference 2 | . 2 . . Siege Activations . | . . . . Martial Activations . | . . . . Shielding Activations . | . . . . Robots Disrupted . | . . . . Combat Hostiles . | . . . . Robots Corrupted . | . . . . Combat Hostiles . | . . . . Parts Fried . | . . . . Impact Corruptions . | . . . . Robots Melted . | . . . . Combat Hostiles . | . . . . Parts Melted 4 | . 2 . 2 Heat Transferred 3256 | . 1480 333 1443 Parts Sabotaged . | . . . . Parts Stolen . | . . . . Parts Stripped . | . . . . Power Chain Reactions . | . . . . Alert | -11 -10 -10 -10 ------- Run | Yrd Mat Min Sub Maximum Alert Level . | . . . . Low Security (%) 100 | 100 100 100 . Level 1 . | . . . . Level 2 . | . . . . Level 3 . | . . . . Level 4 . | . . . . Level 5 . | . . . . High Security . | . . . . Max Security . | . . . . Peak Influence 75 | 5 75 52 . Initial . | . . . . Average 5 | . 5 4 . Influence Increases 447 | 10 277 160 . Destroy 0b10 Robot/C 280 | . 160 120 . Destroy 0b10 Robot/NC 65 | 10 55 . . Destroy Leader 80 | . 50 30 . Allied During Kill 6 | . . 6 . Successful Hack 12 | . 12 . . Disable Machine 4 | . . 4 . Influence Decreases 447 | 10 277 160 . Time Decay 447 | 10 277 160 . Squads Dispatched . | . . . . Investigation . | . . . . Extermination . | . . . . Reinforcement . | . . . . Assault . | . . . . Garrison . | . . . . Intercept . | . . . . Searches Triggered . | . . . . Construction Impeded . | . . . . Haulers Reinforced . | . . . . Active Scanning Responses . | . . . . Cargo Convoy Interrupts . | . . . . Stealth | -11 -10 -10 -10 --------- Run | Yrd Mat Min Sub Distress Signals 2 | . 2 . . Communications Jammed . | . . . . Distress Signals . | . . . . Times Spotted 29 | . 16 5 8 Peak Tracking Total 4 | . 4 2 2 Tactical Retreats . | . . . . Traps | -11 -10 -10 -10 ------- Run | Yrd Mat Min Sub Traps Triggered 9 | . 8 . 1 Indirectly . | . . . . Trap Hack Attempts . | . . . . Triggered . | . . . . Disarmed . | . . . . Reprogrammed . | . . . . Reused . | . . . . Traps Extracted . | . . . . Installed . | . . . . Triggered . | . . . . Machines | -11 -10 -10 -10 ---------- Run | Yrd Mat Min Sub Machines Disabled 1 | . . 1 . Max in Single Turn 1 | . . 1 . Machines Repaired . | . . . . Machines Dismantled . | . . . . Machines Sabotaged . | . . . . Overloaded Fab Kills . | . . . . Hacking | -11 -10 -10 -10 --------- Run | Yrd Mat Min Sub Machines Accessed 10 | . 8 . 2 Terminals 8 | . 8 . . Fabricators . | . . . . Repair Stations . | . . . . Recycling Units . | . . . . Scanalyzers . | . . . . Garrison Access . | . . . . Total Hacks 13 | . 10 . 3 Successful 13 | . 10 . 3 Failed . | . . . . Catastrophic . | . . . . Database Lockouts . | . . . . Manual 8 | . 8 . . Terminals 10 | . 10 . . Fabricators . | . . . . Repair Stations . | . . . . Recycling Units . | . . . . Scanalyzers . | . . . . Garrison Access . | . . . . Terminal Hacks 5 | . 2 . 3 Record 1 | . . . 1 Robot Analysis 2 | . 2 . . Open Door 1 | . . . 1 Release Object 1 | . . . 1 Fabricator Hacks . | . . . . Repair Station Hacks . | . . . . Recycling Unit Hacks . | . . . . Scanalyzer . | . . . . Garrison Access Hacks . | . . . . Unauthorized Hacks 8 | . 8 . . Terminals 8 | . 8 . . Botnet 8 | . 8 . . Fabricators . | . . . . Repair Stations . | . . . . Recycling Units . | . . . . Scanalyzers . | . . . . Garrison Access . | . . . . Data Cores Recovered . | . . . . Used . | . . . . Hacking Detections 3 | . 3 . . Full Trace Events . | . . . . Feedback Events . | . . . . Feedback Blocked . | . . . . Robot Schematics Acquired . | . . . . Robots Built . | . . . . Authchips . | . . . . Time . | . . . . Total Robot Build Rating . | . . . . Part Schematics Acquired . | . . . . Parts Built . | . . . . Authchips . | . . . . Time . | . . . . Total Part Build Rating . | . . . . Part Studies Acquired . | . . . . Parts Repaired . | . . . . Time . | . . . . Parts Recycled . | . . . . Recycled Matter . | . . . . Retrieved Matter . | . . . . Retrieved Components . | . . . . Parts Scanalyzed . | . . . . Part Schematics Acquired . | . . . . Parts Damaged . | . . . . Bothacking | -11 -10 -10 -10 ------------ Run | Yrd Mat Min Sub Used RIF Installer . | . . . . Robots Hacked . | . . . . Non-combat . | . . . . Combat . | . . . . Robot Hacks Applied . | . . . . Relay Couplers Released . | . . . . Fabnet Peak Effective % . | . . . . Robots Rewired . | . . . . Allies Hacked . | . . . . Hacks Repelled . | . . . . Allies | -11 -10 -10 -10 -------- Run | Yrd Mat Min Sub Total Allies 3 | . . 3 . Largest Group 3 | . . 3 3 Highest-Rated Group 40 | . . 40 40 Highest-Rated Ally 16 | . . 16 16 Total Orders . | . . . . Ally Attacks 31 | . . 13 18 Total Damage 116 | . . 92 24 Kills 2 | . . 2 . Allies Corrupted . | . . . . Allies Melted . | . . . . Intel | -11 -10 -10 -10 ------- Run | Yrd Mat Min Sub Active Infowar (turns) 882 | . . . 882 Structural 882 | . . . 882 Robot Analysis Total 2 | . 2 . . Derelict Logs Recovered 2 | . . 1 1 Drone Launches . | . . . . Drone Recoveries . | . . . . Exploration | -11 -10 -10 -10 ------------- Run | Yrd Mat Min Sub Turns Passed 4380 | 115 1785 1247 1233 Spaces Moved 2309 | 52 953 732 572 Core 19 | 19 . . . Treads 2290 | 33 953 732 572 Legs . | . . . . Wheels . | . . . . Hover . | . . . . Flight . | . . . . Fastest Speed 50 | 50 160 160 160 Average Speed 162 | 140 160 160 169 Slowest Speed 240 | 200 240 160 240 Overloaded Moves . | . . . . Propulsion Burnouts . | . . . . Robots Hopped . | . . . . Potential Cave-ins . | . . . . Cave-ins Triggered . | . . . . Exploration Rate (%) 59 | 4 99 97 37 Regions Visited 3 Branch Regions 2 Pre-discovered Areas 1 | . . . 1 Known Exits Taken 3 | 1 1 1 . Unknown Exits Taken . | . . . . Scrap Searched 1 | . . 1 . Spaces Dug . | . . . . Terrain Destroyed . | . . . . Melee . | . . . . Projectile . | . . . . AOE . | . . . . Terrain Rammed . | . . . . Walls Destroyed . | . . . . Machines Disabled . | . . . . Actions | -11 -10 -10 -10 --------- Run | Yrd Mat Min Sub Total 2725 | 78 1113 784 750 Wait 184 | . 33 31 120 Move 2306 | 51 952 731 572 Hop . | . . . . Pick Up 36 | 8 25 1 2 Fast Attach 15 | 2 12 . 1 Attach 11 | 6 3 . 2 Detach 1 | 1 . . . Swap 12 | . 8 2 2 Drop 18 | . 14 2 2 Fire 135 | 10 66 10 49 Melee . | . . . . Ram . | . . . . Kick . | . . . . Crush 7 | . . 7 . Escape Stasis . | . . . . Rewire . | . . . . Trap . | . . . . Miscellaneous . | . . . . Route ------- -11/Scrapyard -10/Materials (discovered 5 exits: *Mat x3 / *Min x2) -10/Mines (discovered 3 exits: *Mat x2 / *Sub) -10/Subcaves History --------- Turn | Location | Event 7 | -11/Scrapyard | Identified exit to Materials 7 | -11/Scrapyard | Discovered exit to Materials (range 16) 116 | -11/Scrapyard | Entered Materials 116 | -10/Materials | Evolved 1 slot: Utility x1 315 | -10/Materials | Build established: Hacker-Mutant 318 | -10/Materials | Identified exit to Materials 318 | -10/Materials | Discovered exit to Materials (range 3) 645 | -10/Materials | Identified exit to Mines 645 | -10/Materials | Discovered exit to Mines (range 12) 775 | -10/Materials | Discovered exit to Materials (range 7) 1549 | -10/Materials | Discovered exit to Mines (range 14) 1765 | -10/Materials | Discovered exit to Materials (range 10) 1901 | -10/Materials | Entered Mines 1933 | -10/Mines | Assisted by bots powering up and referring to "LRC-V3" 1989 | -10/Mines | Found a hidden stash of uninstalled traps 2150 | -10/Mines | Found a damaged Exp. Sensor Array with a note attached 2156 | -10/Mines | Found Prototype Device 2174 | -10/Mines | Discovered exit to Materials (range 7) 2372 | -10/Mines | Learned 2 Materials zone layouts 2614 | -10/Mines | Identified exit to Subcaves 2614 | -10/Mines | Discovered exit to Subcaves (range 9) 2801 | -10/Mines | Discovered exit to Materials (range 10) 3148 | -10/Mines | Entered Subcaves 3148 | -10/Subcaves | Accompanied by 3 allies 3149 | -10/Subcaves | Approached by a straggling Scientist 3631 | -10/Subcaves | Learned location of Zion (-6) 3631 | -10/Subcaves | Met a Zionite searching for "candidates" 3653 | -10/Subcaves | Learned Materials garrison access intel 3780 | -10/Subcaves | Shifting Twisted Machinery released Sub. Monowheel 3791 | -10/Subcaves | Shifting Twisted Machinery released Sub. Laser 4047 | -10/Subcaves | Curiously followed by a Cobbler waking with a query about "LVR3C" 4079 | -10/Subcaves | Core integrity fell below 50% 4110 | -10/Subcaves | Core integrity fell below 20% 4381 | -10/Subcaves | Destroyed by Shrapnel Trap Last Messages --------------- 97-F03(c): "I think it's somewhere northeast of here" 04272_ Subatomizers dissect the Disposable Heat Sink. 04279_ 14-8JQ(O) puts together Sub. Laser. 04294_ Subatomizers dissect the Disposable Heat Sink. 04299_ Acquired Battle Cannon. 04301_ Dropped Assault Rifle. 04319_ Subatomizers dissect the Disposable Heat Sink. 97-F03(c): "I think it's somewhere northeast of here" 04332_ Subatomizers dissect the Disposable Heat Sink, destroying it. 97-F03(c): "I think it's somewhere north of here" 04381_ Triggered Shrapnel Trap. 04381_ An expanding cloud of shrapnel blasts out in all directions. Map ----- +----------------------------------------------------+ | ?????????????????????????????????????????????????? | | ?????????????????????????????????????????????????? | | ?????????????????????????????????????????????????? | | ?????????????????????????????????????????????????? | | ?????????????????????????????????????????????????? | | ?????????????????????????????????????????????????? | | ?????????????????????????????????????????????????? | | ?????????????????????????????????????????????????? | | ?????????????????????????????????????????????????? | | ?????????????????????????????????????????????????? | | ?????????????????????????????????????????????????? | | ?????????????????????????????????????????????????? | | ??????????????????????????????######?????????????? | | ??????????????????????????###########????????????? | | ??????????????????????????##### # ###????????????? | | ?????????????????????????? ????????????? | | ??????????????????????????? ??????????????? | | ?????????????????????????? ##??????????????? | | ?????????????????????????? ###??????????????? | | ???????####??????????????? ##???????????????? | | ??????######?????????????? ##???????????????? | | ######## ###???????????### ####???????????????? | | ####### ##?############# ########???????????? | | ### ############### ######???????????? | | ###### ####?????????? | | ## ### @ ###????????? | | ### ## O c ## ### ##????????? | | #### ## ### #########??????? # ????????? | | ### ###########????????????????????? | | #######?????????????????????????? | | ####?????????????????????????????? | | ## #######??????????????????????????????? | | #########???????????????????????????????? | | ######???????????????????????????????????? | | ## #####??????????????????????????????????????? | | #######???????????????????????????????????????? | | ######?????????????????????????????????????????? | | #####????????????????????????????????????????????? | | ####?????????????????????????????????????????????? | | ?????????????????????????????????????????????????? | | ?????????????????????????????????????????????????? | | ?????????????????????????????????????????????????? | | ?????????????????????????????????????????????????? | | ?????????????????????????????????????????????????? | | ?????????????????????????????????????????????????? | | ?????????????????????????????????????????????????? | | ?????????????????????????????????????????????????? | | ?????????????????????????????????????????????????? | | ?????????????????????????????????????????????????? | | ?????????????????????????????????????????????????? | +----------------------------------------------------+ Best States ------------- Heat Dissipation 61 Energy Generation 10 Energy Capacity 250 Matter Stores 300 Matter Capacity 300 Sight Range 16 Terrain Scan Density 10 Armor Coverage 300 Resistance: KI 35 Resistance: TH 35 Resistance: EX 35 Resistance: EM 35 Resistance: I 35 Resistance: S 35 Resistance: P 35 Evasion (%) 50 Recoil Reduction 2 Offensive Hacking 20 Item Schematics ----------------- None Robot Schematics ------------------ None Fabricated ------------ Nothing Repaired ---------- Nothing Studied --------- None Alien Tech Used ----------------- None Achievements -------------- None Challenges ------------ None Game ------ Seed SensorCompositeTerminator Manual? 0 Play Time 00:20:00 Cumulative 244.8 hours Start 2026.01.05 @ 10:14:28 End 2026.01.05 @ 10:30:15 Sessions 1 Manual Loads 0 Difficulty Explorer Special Mode None Game No. 388 Rogue 0 Adventurer 0 Explorer 388 Win Type - Total 0 Types 0/0/0/0/0/0/0/0/0/0 Lore% 71 Gallery% 69 Achievement% 54 Wizard Run 0 Options --------- Layout 1 ASCII 0 Keyboard 0 Movement Mouse Keybinds 0 Fullscreen 1 Font 24/Smallcaps Map View 50x35 Zoom Use 0% Tactical HUD 1 Map Filters NONE Filters NONE Steam 1 RUN: 632d788c-4756-46ad-a2e7-310294d16d85